Workbook

Sheet 01.04.2018 (2)
D1: Приложение № 11
D2: к постановлению администрации
D3: ЗАТО г.Радужный Владимирской области
D4: от 24.04.2018 года № 614
C6: Сведения о фактической численности муниципальных служащих, работников казенных и бюджетных учреждений и расходы на их денежное содержание по состоянию на 01.04.2018 год
F8: Ед.изм.тыс.руб.
A9: №п/п | B9: Раздел (подраздел) | C9: Наименование разделов (подразделов) расходов | D9: Фактическая численность на 01.04.2018 (чел.) | E9: Годовой фонд оплаты труда с начислениями | F9: Исполнено за отчетный период
A10: 1 | B10: 2 | C10: 3 | D10: 4 | E10: 5 | F10: 6
A11: 1 | B11: 0100 | C11: Общегосударственные вопросы, всего, в том числе | D11: =D12+D13+D14+D15+D16 -> 64 | E11: =E13+E14+E15+E16 -> 30600.67 | F11: =F13+F14+F15+F16 -> 5723.14
A12: 1.1 | B12: 0102 | C12: Функционирование высшего должностного лица субъекта Российской Федерации и муниципального образования | D12: 1
A13: 1.2 | B13: 0103 | C13: Функционирование представительных органов местного самоуправления | D13: 2 | E13: 1093.92 | F13: 196.25
A14: 1.3 | B14: 0104 | C14: Функционирование местных администраций | D14: 18 | E14: 9991.24 | F14: 1920.79
A15: 1.4 | B15: 0106 | C15: Обеспечение деятельности финансовых органов | D15: =11-1 -> 10 | E15: 4811.3 | F15: 943.72
A16: 1.5 | B16: 0113 | C16: Другие общегосударственные вопросы | D16: 33 | E16: 14704.21 | F16: 2662.38
A17: 2 | B17: 0300 | C17: Национальная безопасность и правоохранительная деятельность, всего, в т. ч. | D17: =D18 -> 5 | E17: =E18 -> 2121.49 | F17: =F18 -> 518.67
A18: 2.1 | B18: 0309 | C18: Защита населения и территории от последствий чрезвычайных ситуаций природного и техногенного характера,гражданская оборона | D18: 5 | E18: 2121.49 | F18: 518.67
A19: 3. | B19: 0400 | C19: Национальная экономика | D19: 36 | E19: 15069.54 | F19: 2356.78
A20: 4 | B20: 0500 | C20: Жилищно-коммунальное хозяйство | D20: 184 | E20: 52928.57 | F20: 11783.97
A21: 5 | B21: 0700 | C21: Образование,всего,в том числе | D21: =D22+D23+D24+D25 -> 619 | E21: =E22+E23+E24+E25 -> 203386.5 | F21: 49359.92
A22: 5.1 | B22: 0701 | C22: Дошкольное образование | D22: 259 | E22: 84457.55 | F22: 19341.48
A23: 5.2 | B23: 0702 | C23: Общее образование | D23: =332-137 -> 195 | E23: 70590.2 | F23: 18393
A24: 5.3 | B24: 0703 | C24: Учреждения по внешкольной работе с детьми | D24: =54+83 -> 137 | E24: =16068.98+22209.75 -> 38278.73 | F24: =3905.07+5410.07 -> 9315.14
A25: 5.4. | B25: 0709 | C25: Другие вопросы в области образования, всего, в том числе | D25: =2+26 -> 28 | E25: 10060.02 | F25: 2310.3
A26: 5.4.1 | C26: Централизованные бухгалтерии | D26: 15 | E26: 4881.92 | F26: 1131.71
A27: 6. | B27: 0800 | C27: Культура, кинематография | D27: =D28+D29 -> 68 | E27: =E28+E29 -> 28604.99 | F27: =F28+F29 -> 7437.61
A28: 6.1 | B28: 0801 | C28: Культура | D28: 51 | E28: 21072.88 | F28: 5962.22
A29: 6.2 | B29: 0804 | C29: Другие вопросы в области культуры,кинематографии | D29: 17 | E29: 7532.11 | F29: 1475.39
C30: Всего: | D30: =D11+D17+D19+D20+D21+D27 -> 976 | E30: =E11+E17+E19+E20+E21+E27 -> 332711.76 | F30: =F11+F17+F19+F20+F21+F27 -> 77180.09
C32: Руководитель | E32: О.М.Горшкова
C34: Зав.бюджетным отделом | E34: М.Л.Семенович
C36: Исп. В.Н. Милованова
B37: 3-67-17
